[Event "Israeli Team U18-ch 2022"]
[Site "Be'er Ya'akov"]
[Date "2022.08.16"]
[Round "7.16"]
[White "Sade, Elad"]
[Black "Zuev, Ilya"]
[Result "0-1"]
[ECO "C01"]
[WhiteElo "1359"]
[BlackElo "1789"]
[Annotator "NA RC"]
[PlyCount "132"]
[EventDate "2022.08.14"]
[EventCountry "ISR"]
[SourceTitle "playchess.com"]
[Source "ChessBase"]
[SourceQuality "1"]
[TimeControl "3000+10"]

1. e4 {[%emt 0:00:01]} e6 {[%emt 0:00:05]} 2. d4 {[%emt 0:00:03]} d5 {[%emt 0:00:03]} 3. exd5 {[%emt 0:00:03]} exd5 {[%emt 0:00:09]} 4. Nf3 {[%emt 0:00:08]} Nf6 {[%emt 0:00:08]} 5. Bd3 {[%emt 0:00:12]} Bd6 {[%emt 0:00:06]} 6. O-O {[%emt 0:00:05]} O-O {[%emt 0:00:05]} 7. Re1 {[%emt 0:00:03]} Re8 {[%emt 0:00:29]} 8. Rxe8+ {[%emt 0:00:09]} Qxe8 {[%emt 0:00:06]} 9. Bg5 {[%emt 0:00:42]} Ne4 {[%emt 0:00:18]} 10. Qe2 {[%emt 0:02:39]} f5 {[%emt 0:04:37]} 11. c4 {[%emt 0:04:17]} c6 {[%emt 0:00:59]} 12. Nc3 {[%emt 0:01:31]} Be6 {[%emt 0:00:45]} 13. cxd5 {[%emt 0:01:32]} cxd5 {[%emt 0:01:38]} 14. Nb5 {[%emt 0:01:45]} Qd7 {[%emt 0:02:50]} 15. Nxd6 {[%emt 0:01:30]} Qxd6 {[%emt 0:00:20]} 16. Be3 {[%emt 0:03:23]} Nc6 {[%emt 0:01:26]} 17. Rc1 {[%emt 0:01:47]} f4 {[%emt 0:01:29]} 18. Bd2 {[%emt 0:00:25]} Nxd2 {[%emt 0:06:19]} 19. Qxd2 {[%emt 0:00:43]} Bg4 {[%emt 0:00:54]} 20. Be2 {[%emt 0:01:14]} Re8 {[%emt 0:01:36]} 21. h3 {[%emt 0:00:37]} Bh5 {[%emt 0:00:54]} 22. Re1 {[%emt 0:04:43]} Qb4 {[%emt 0:04:20]} 23. Kf1 {[%emt 0:10:30]} Qxd2 {[%emt 0:00:42]} 24. Nxd2 {[%emt 0:00:19]} Rxe2 {[%emt 0:00:13]} 25. Rxe2 {[%emt 0:00:26]} Bxe2+ {[%emt 0:00:05]} 26. Kxe2 {[%emt 0:00:08]} Nxd4+ {[%emt 0:00:02]} 27. Kd3 {[%emt 0:00:33]} Nc6 {[%emt 0:00:57]} 28. a3 {[%emt 0:02:37]} a5 {[%emt 0:01:09]} 29. Nb3 {[%emt 0:00:28]} b6 {[%emt 0:00:55]} 30. Nd4 {[%emt 0:01:20]} Ne5+ {[%emt 0:00:36]} 31. Kc3 {[%emt 0:01:04]} Kf7 {[%emt 0:02:13]} 32. Ne2 {[%emt 0:00:28]} g5 {[%emt 0:00:36]} 33. Kd4 {[%emt 0:00:34]} Ke6 {[%emt 0:00:09]} 34. Nc3 {[%emt 0:00:22]} Nc6+ {[%emt 0:00:08]} 35. Kd3 {[%emt 0:00:22]} Ke5 {[%emt 0:00:23]} 36. Nb5 {[%emt 0:00:12]} h5 {[%emt 0:01:14]} 37. Nc7 {[%emt 0:00:31]} Nb8 {[%emt 0:01:52]} 38. Ne8 {[%emt 0:00:42]} Na6 {[%emt 0:01:19]} 39. Ng7 {[%emt 0:00:25]} h4 {[%emt 0:00:18]} 40. f3 {[%emt 0:00:30]} Nc5+ {[%emt 0:00:36]} 41. Kc2 {[%emt 0:00:48]} b5 {[%emt 0:00:36]} 42. Ne8 {[%emt 0:01:20]} Ne6 {[%emt 0:01:33]} 43. Kd3 {[%emt 0:00:21]} Nc5+ {[%emt 0:01:05]} 44. Kc2 {[%emt 0:00:02]} b4 {[%emt 0:00:37]} 45. Nc7 {[%emt 0:00:44]} Kd4 {[%emt 0:00:56]} 46. Kd2 {[%emt 0:00:55]} Kc4 {[%emt 0:00:38]} 47. Kc2 {[%emt 0:00:15]} bxa3 {[%emt 0:01:12]} 48. bxa3 {[%emt 0:00:01]} d4 {[%emt 0:00:18]} 49. Kb2 {[%emt 0:00:48]} Kd3 {[%emt 0:00:52]} 50. Nb5 {[%emt 0:00:48]} Ne6 {[%emt 0:01:15]} 51. Nd6 {[%emt 0:00:11]} Ke2 {[%emt 0:00:55]} 52. Kc1 {[%emt 0:00:40]} d3 {[%emt 0:00:30]} 53. Nc4 {[%emt 0:00:12]} Nd4 {[%emt 0:00:21]} 54. Nd2 {[%emt 0:00:38]} Ke1 {[%emt 0:00:31]} 55. Nc4 {[%emt 0:00:35]} Ne2+ {[%emt 0:00:33]} 56. Kb2 {[%emt 0:00:09]} d2 {[%emt 0:00:20]} 57. Nxd2 {[%emt 0:00:11]} Kxd2 {[%emt 0:00:06]} 58. Kb3 {[%emt 0:00:02]} Nc3 {[%emt 0:01:53]} 59. Kc4 {[%emt 0:01:03]} Kc2 {[%emt 0:00:17]} 60. Kc5 {[%emt 0:00:30]} Kb3 {[%emt 0:00:10]} 61. Kd4 {[%emt 0:00:21]} Kxa3 {[%emt 0:00:52]} 62. Kxc3 {[%emt 0:00:05]} a4 {[%emt 0:00:07]} 63. Kc2 {[%emt 0:00:10]} Kb4 {[%emt 0:00:05]} 64. Kb2 {[%emt 0:00:02]} Kc4 {[%emt 0:00:06]} 65. Ka3 {[%emt 0:00:03]} Kd3 {[%emt 0:00:01]} 66. Kxa4 {[%emt 0:00:01]} Ke2 {[%emt 0:00:01]} 0-1

[Event "Israeli Team U18-ch 2022"]
[Site "Be'er Ya'akov"]
[Date "2022.08.16"]
[Round "7.17"]
[White "Kochavi, Dana"]
[Black "Gavriely, Or"]
[Result "0-1"]
[ECO "B11"]
[WhiteElo "1885"]
[BlackElo "2072"]
[Annotator "TA"]
[PlyCount "136"]
[EventDate "2022.08.14"]
[EventCountry "ISR"]
[SourceTitle "playchess.com"]
[Source "ChessBase"]
[SourceQuality "1"]
[TimeControl "3000+10"]

{[%evp 10,136,24,25,29,0,8,-10,29,29,29,25,40,23,36,9,8,7,32,0,37,10,40,37,37,37,35,34,36,35,29,28,28,27,16,43,114,0,70,82,74,0,33,20,29,37,26,13,16,-46,-10,-10,-8,-43,-43,-46,-46,-36,-51,-67,-63,-74,-77,-85,-78,-91,-70,-95,-94,-92,-36,-47,-41,-44,-29,-52,0,0,0,-36,-44,-77,-51,-51,-51,-51,-51,-51,-51,-51,-51,-61,-37,-37,-30,-42,-19,-21,-8,-10,-37,-109,-104,-625,-625,-29979,-29980,-29980,-29981,-29981,-29982,-29981,-29982,-29985,-29986,-29986,-29987,-29987,-29981,-29988,-29988,-29989,-29990,-29990,-29991,-29991,-29992,-29994,-29995]} 1. e4 {[%emt 0:00:03]} c6 {[%emt 0:00:05]} 2. Nc3 {[%emt 0:00:05]} d5 {[%emt 0:00:04]} 3. Nf3 {[%emt 0:00:06]} dxe4 {[%emt 0:00:05]} 4. Nxe4 {[%emt 0:00:06]} Nf6 {[%emt 0:00:01]} 5. Qe2 {[%emt 0:00:12]} Nxe4 {[%emt 0:00:01]} 6. Qxe4 {[%emt 0:00:12]} Qd5 {[%emt 0:00:30] B11: Caro-Kann: Two Knights Variation.} 7. Qh4 {[%emt 0:00:14]} Qe6+ {[%emt 0:00:15]} 8. Be2 {[%emt 0:00:01]} Qg4 {[%emt 0:00:08] The position is equal.} 9. Qg3 {[%emt 0:00:03]} Qxg3 {[%emt 0:00:03]} 10. hxg3 {[%emt 0:00:06]} g6 {[%emt 0:00:02]} 11. Ng5 {[%emt 0:00:17]} Bg7 {[%emt 0:01:00] [#]} 12. d3 $146 {[%emt 0:00:22]} (12. Rxh7 Rxh7 13. Nxh7 Bf5 $15) ({Predecessor:} 12. Bc4 e6 13. c3 c5 14. Ne4 Nd7 15. Bb5 b6 16. Nd6+ Ke7 17. Nxc8+ Raxc8 18. d3 {½-½ (33) Wen,Y (2585)-Bai,J (2586) Xinghua 2018}) 12... Nd7 {[%emt 0:03:07]} 13. Ne4 {[%emt 0:02:14]} Nb6 {[%emt 0:11:48]} 14. c3 {[%emt 0:03:46]} Nd5 {[%emt 0:03:22]} 15. Bd2 {[%emt 0:01:06]} f5 {[%emt 0:01:56]} 16. Ng5 {[%emt 0:05:17]} h6 {[%emt 0:00:18]} 17. Nf3 {[%emt 0:00:06]} e5 {[%emt 0:00:35]} 18. O-O-O {[%emt 0:01:22]} Kf7 {[%emt 0:00:11]} 19. Rde1 {[%emt 0:01:07]} e4 {[%emt 0:06:55]} 20. dxe4 {[%emt 0:00:41]} fxe4 {[%emt 0:00:00]} 21. Nd4 {[%emt 0:00:34]} Bxd4 {[%emt 0:00:01]} 22. cxd4 {[%emt 0:00:12]} Kg7 {[%emt 0:01:33] [#]} ({Better is} 22... h5 $1 $14) 23. Rh4 {[%emt 0:01:33]} (23. Bd1 $1 $16) 23... Nf6 {[%emt 0:01:17]} (23... Bf5 $11) 24. Reh1 $1 $14 {[%emt 0:00:50][%cal Rd2h6]} h5 {[%emt 0:03:16]} 25. Bg5 {[%emt 0:00:13]} (25. Bf4 $16) 25... Rf8 {[%emt 0:01:54]} 26. f3 {[%emt 0:10:46]} exf3 {[%emt 0:01:12]} 27. gxf3 {[%emt 0:00:33]} Be6 {[%emt 0:02:01]} 28. b3 {[%emt 0:02:16]} Bd5 {[%emt 0:00:17]} 29. g4 {[%emt 0:01:27]} (29. Bd1 $1 $11) 29... Nh7 {[%emt 0:00:13][%csl LRf3,LRg5]} (29... Rae8 $5 {[%cal Re8e2]} 30. R1h2 Nh7 $11) 30. Bd2 {[%emt 0:00:45] This bishop pair is nice.} Rae8 $36 {[%emt 0:01:32][%mdl 2048] Black is pushing.} 31. Bd1 {[%emt 0:01:33]} (31. gxh5 {keeps more tension.} Rxe2 32. hxg6 Ng5 33. Bxg5 Rxf3 34. Bd2) 31... Bxf3 {[%emt 0:00:12]} 32. Bxf3 {[%emt 0:00:01]} Rxf3 {[%emt 0:00:00]} 33. gxh5 {[%emt 0:00:12]} g5 {[%emt 0:00:24]} 34. Rg4 {[%emt 0:00:15]} Kh6 {[%emt 0:00:06]} 35. Rh2 {[%emt 0:03:56]} Rf5 {[%emt 0:00:19]} 36. Kc2 {[%emt 0:00:56]} Nf6 {[%emt 0:01:17][%csl LRg4,LRh5]} 37. Rg3 {[%emt 0:01:33]} Re4 {[%emt 0:01:42]} 38. Kd3 {[%emt 0:01:20]} c5 {[%emt 0:00:00]} 39. dxc5 {[%emt 0:00:31]} Rd5+ {[%emt 0:00:11]} ({Black should try} 39... Rxc5 $17 40. Bc3 Rd5+ 41. Kc2 Nxh5) 40. Kc2 $15 {[%emt 0:09:58]} Rxc5+ 41. Kb2 {[%emt 0:00:00]} Rf5 {[%emt 0:01:48] Against Rf3} 42. Rhg2 {[%emt 0:00:00][%cal Rg3g5]} Nh7 {[%emt 0:00:38]} 43. Rd3 {[%emt 0:00:00]} Nf6 {[%emt 0:07:01]} 44. Rdg3 {[%emt 0:00:00][%cal Rg3g5]} Ree5 {[%emt 0:00:00]} 45. Rh3 {[%emt 0:00:50]} Nd5 {[%emt 0:00:00]} 46. Rgh2 {[%emt 0:00:00]} Nf4 {[%emt 0:00:00]} 47. Rc3 {[%emt 0:00:20]} Rc5 48. Re3 {[%emt 0:00:00]} Rfe5 {[%emt 0:00:00]} 49. Rf3 {[%emt 0:00:00]} Re4 {[%emt 0:00:00]} 50. Rg3 {[%emt 0:00:00]} b6 {[%emt 0:00:00] Black is much more active.} 51. Rf3 {[%emt 0:00:00]} Rd5 {[%emt 0:00:00]} 52. Kc2 {[%emt 0:00:00]} Rd6 {[%emt 0:00:11]} 53. Rc3 {[%emt 0:00:00]} Re2 {[%emt 0:00:38]} (53... Red4 {looks sharper.} 54. Rc7 Rd7 55. Rc6+ R4d6) 54. Rxe2 Nxe2 $11 {[%mdl 4096] Endgame KRB-KRN} 55. Rc7 {[%emt 0:00:25]} (55. Rd3 $1 $15 Nd4+ 56. Kd1) 55... Nd4+ $17 {[%emt 0:00:13]} ({Much weaker is} 55... Kxh5 $6 56. Rxa7 Nd4+ 57. Kc1 $11) 56. Kd1 $2 {[%emt 0:00:01][%mdl 8192] [#] Now White is beyond hope.} (56. Kb2 $17) 56... Nf3 $19 {[%emt 0:00:19]} 57. Rc2 {[%emt 0:00:01]} Rxd2+ {[%emt 0:00:06] Black mates.} 58. Rxd2 Nxd2 {[%emt 0:00:00]} 59. Kxd2 {[%emt 0:00:02]} Kxh5 {[%emt 0:00:01] K3P-KPP} 60. Ke2 {[%emt 0:00:03]} Kg4 {[%emt 0:00:00]} 61. Kf2 Kf4 62. Kg2 {[%emt 0:01:58]} g4 {[%cal Bg5g4,Bg4g3,Bg3g2][%mdl 32]} 63. Kf2 {[%emt 0:00:00]} b5 {[%emt 0:00:03]} 64. b4 {[%emt 0:00:00]} a6 {[%emt 0:00:04]} 65. a3 {[%emt 0:00:00]} g3+ {[%emt 0:00:00]} 66. Kg2 Kg4 67. Kf1 {[%emt 0:00:00]} Kf3 {[%emt 0:00:01]} 68. Kg1 {[%emt 0:00:00]} g2 {[%emt 0:00:00] Weighted Error Value: White=0.36/Black=0.11 (very precise)} 0-1

[Event "Israeli Team U18-ch 2022"]
[Site "Be'er Ya'akov"]
[Date "2022.08.16"]
[Round "7.18"]
[White "Gadasi, Noam"]
[Black "Shefer, Uri"]
[Result "1-0"]
[ECO "C77"]
[WhiteElo "1993"]
[BlackElo "1854"]
[Annotator "TA"]
[PlyCount "147"]
[EventDate "2022.08.14"]
[EventCountry "ISR"]
[SourceTitle "playchess.com"]
[Source "ChessBase"]
[SourceQuality "1"]
[TimeControl "3000+10"]

{[%evp 14,147,19,23,34,15,21,19,17,6,27,25,28,12,45,12,18,10,10,9,2,8,24,0,75,85,89,15,14,4,144,147,182,174,363,365,445,459,510,182,190,182,205,187,172,183,174,185,200,166,224,224,318,311,325,325,313,325,322,308,418,372,402,375,404,391,390,391,671,668,723,628,691,718,699,668,722,733,786,770,833,808,1550,1530,1355,950,1273,774,566,151,156,107,1019,973,712,538,425,322,790,762,771,764,750,654,667,631,806,806,29961,6239,29976,29978,29977,29978,29976,29979,29979,29980,29980,29981,29982,29982,29983,29984,29983,29984,29984,29985,29987,29988,29989,29988,29988,29989,29989,29990]} 1. e4 {[%emt 0:00:09]} e5 {[%emt 0:00:02]} 2. Nf3 {[%emt 0:00:10]} Nc6 {[%emt 0:00:02]} 3. Bb5 {[%emt 0:00:07][%cal Bf1b5,Bb5a4,Ba4b3][%mdl 32]} a6 {[%emt 0:00:04]} 4. Ba4 {[%emt 0:50:24]} Nf6 {[%emt 0:00:03]} 5. d3 {[%emt 0:00:00]} d6 {[%emt 0:00:30]} 6. c3 {[%emt 0:00:00]} g6 {[%emt 0:01:23]} 7. O-O {[%emt 0:00:00]} Bg7 {[%emt 0:00:24]} 8. Re1 {[%emt 0:00:00]} b5 {[%emt 0:00:55] C77: Ruy Lopez: 3...a6 4 Ba4 Nf6, unusual lines.} 9. Bb3 {[%emt 0:00:00]} O-O {[%emt 0:00:52]} 10. a4 {[%emt 0:00:00] [#]} b4 $146 {[%emt 0:01:19] The position is equal.} ({Predecessor:} 10... Rb8 11. axb5 axb5 12. Nbd2 Nd7 13. Nf1 Nc5 14. Ba2 Be6 15. Bg5 Qd7 16. Bd5 h6 {0-1 (56) Velickovic,S (2401)-Pavlovic,M (2457) Mataruska Banja 2008}) 11. Nbd2 {[%emt 0:00:00][%cal Bb1d2,Bd2f1,Bf1g3][%mdl 32]} a5 {[%emt 0:01:44]} 12. h3 {[%emt 0:00:00]} Ne7 {[%emt 0:09:16]} 13. Nf1 {[%emt 0:00:00]} Bb7 {[%emt 0:00:55]} 14. Ng3 {[%emt 0:00:00]} c5 {[%emt 0:02:06]} 15. d4 {[%emt 0:00:00]} Qc7 {[%emt 0:00:39]} 16. dxc5 {[%emt 0:00:00]} dxc5 {[%emt 0:00:07]} 17. Qe2 {[%emt 0:00:00]} Nc8 {[%emt 0:06:12]} 18. Bg5 {[%emt 0:00:00]} Nb6 {[%emt 0:03:30]} (18... bxc3 $11 19. bxc3 Nd6) 19. cxb4 $16 {[%emt 0:00:00]} axb4 {[%emt 0:01:51]} 20. Rec1 {[%emt 0:00:00]} ({White should try} 20. a5 $16 Nbd7 21. a6) 20... Ra5 $11 {[%emt 0:01:50]} 21. Qc2 {[%emt 0:00:00]} Rfa8 {[%emt 0:05:28]} (21... Ba6 $11) 22. Be3 $16 {[%emt 0:00:00][%cal Re3c5]} Nfd7 {[%emt 0:11:02]} 23. Ng5 $1 {[%emt 0:00:00]} Rf8 {[%emt 0:00:33]} (23... c4) 24. Bxf7+ $18 {[%emt 0:00:00]} Rxf7 {[%emt 0:00:21]} 25. Qb3 {[%emt 0:00:00][%mdl 64] Pin} Nf6 {[%emt 0:00:43][%cal Og7f8] [#]} 26. Qxf7+ {[%emt 0:00:00]} (26. Bxc5 $1 {[%mdl 512]} Nbd5 27. Bxb4) 26... Qxf7 {[%emt 0:00:02]} 27. Nxf7 {[%emt 0:00:00]} Kxf7 {[%emt 0:00:01]} 28. Bxc5 {[%emt 0:00:00]} Nbd7 {[%emt 0:00:43]} 29. Bxb4 {[%emt 0:00:00]} Ra6 {[%emt 0:00:02]} 30. Rc7 {[%emt 0:00:00]} Bc6 {[%emt 0:00:31]} 31. a5 {[%emt 0:00:00]} Bh6 {[%emt 0:00:20] [#]} (31... Ne8 $142 32. Rc8 Bb5) 32. Rd1 $1 {[%emt 0:00:00] Strongly threatening Rd6.} Bf8 {[%emt 0:00:53] Inhibits Rd6.} (32... Bb5 $142 33. Nf1 Ke8) 33. Bxf8 {[%emt 0:00:43]} Kxf8 {[%emt 0:00:01]} 34. Rd6 {[%emt 0:00:46]} Bb5 {[%emt 0:00:33]} 35. Rxa6 Bxa6 {[%emt 0:00:01]} 36. b4 {[%emt 0:00:16]} Ke8 {[%emt 0:00:29]} 37. f3 {[%emt 0:01:03]} Kd8 {[%emt 0:00:10]} 38. Rc2 {[%emt 0:00:05]} Bb5 {[%emt 0:00:18]} 39. Kf2 {[%emt 0:00:11]} Ne8 {[%emt 0:00:12]} 40. Ne2 {[%emt 0:00:17]} Bxe2 $2 {[%emt 0:00:19]} (40... Nc7 41. Nc3 Bc4) 41. Kxe2 {[%emt 0:00:17]} Nc7 {[%emt 0:00:13]} 42. Ke3 {[%emt 0:00:45]} Nb5 {[%emt 0:00:11]} 43. f4 {[%emt 0:00:11]} exf4+ {[%emt 0:00:07]} 44. Kxf4 {[%emt 0:00:01]} Nd4 {[%emt 0:00:04]} 45. Rd2 {[%emt 0:00:05]} Ne6+ {[%emt 0:00:12]} 46. Ke3 {[%emt 0:00:17]} Kc7 {[%emt 0:00:08]} 47. b5 {[%emt 0:00:25]} Ne5 {[%emt 0:00:16]} 48. Rc2+ {[%emt 0:00:28]} Kb7 {[%emt 0:00:03]} 49. g3 {[%emt 0:00:19] a6+ is the strong threat.} h6 {[%emt 0:00:01]} 50. Kd2 {[%emt 0:00:02]} Nd4 {[%emt 0:00:06]} 51. Rc3 $2 {[%emt 0:00:54]} (51. Rb2 $18 {and White stays clearly on top.}) 51... Nxb5 $16 {[%emt 0:00:19]} 52. Rc5 {[%emt 0:00:02][%csl LRb5,LRe5]} Nf3+ $2 {[%emt 0:00:01][%mdl 8192] Black cannot hold the game after this.} (52... Nd4 $16 53. Kc3 (53. a6+ Kxa6 54. Rd5 Ndc6 $11) 53... Ndc6) 53. Ke3 $18 {[%emt 0:00:00]} Nfd4 {[%emt 0:00:01]} 54. Rd5 {[%emt 0:00:23]} Nc2+ {[%emt 0:00:09]} 55. Kf4 {[%emt 0:00:13]} Nc7 {[%emt 0:00:12]} (55... Ka6 56. Ke5 g5) 56. Rd6 {[%emt 0:00:06]} g5+ {[%emt 0:00:13]} 57. Kf5 {[%emt 0:00:08]} Ne3+ {[%emt 0:00:10]} 58. Kg6 {[%emt 0:00:00]} Nc4 {[%emt 0:00:12]} 59. Rf6 {[%emt 0:00:22]} Nxa5 {[%emt 0:00:06]} 60. Kxh6 {[%emt 0:00:07]} g4 {[%emt 0:00:34]} 61. hxg4 {[%emt 0:00:13][%cal Bh3g4,Bg4g5][%mdl 32] Intending g5 and mate.} Kc8 {[%emt 0:00:01]} 62. g5 {[%emt 0:00:03] White mates.} Ne8 {[%emt 0:00:21]} 63. Rf8 {[%emt 0:00:01]} Kd7 {[%emt 0:00:01]} 64. g6 {[%emt 0:00:10]} Nc6 {[%emt 0:00:08]} 65. g7 {[%emt 0:00:18]} Nxg7 {[%emt 0:00:05]} 66. Kxg7 {[%emt 0:00:02] KR-KN} Nd4 {[%emt 0:00:15]} 67. Rf7+ {[%emt 0:00:10]} Ke6 {[%emt 0:00:04]} 68. g4 {[%emt 0:00:13][%cal Bg3g4,Bg4g5,Bg5g6,Bg6g7][%mdl 32]} Ke5 {[%emt 0:00:31]} 69. g5 {[%emt 0:00:25]} Ne6+ {[%emt 0:00:06]} 70. Kh6 {[%emt 0:00:05]} Nd4 {[%emt 0:00:21]} 71. g6 {[%emt 0:00:01]} Ke6 {[%emt 0:00:10]} 72. Rf1 {[%emt 0:00:05]} Nc6 {[%emt 0:00:11]} 73. g7 {[%emt 0:00:03]} Ne7 {[%emt 0:00:00]} 74. Rf8 {[%emt 0:00:02] Weighted Error Value: White=0.47/Black=0.60} 1-0

[Event "Israeli Team U18-ch 2022"]
[Site "Be'er Ya'akov"]
[Date "2022.08.16"]
[Round "7.19"]
[White "Soybert, Ori"]
[Black "Dezent, Eyal"]
[Result "1/2-1/2"]
[ECO "D14"]
[WhiteElo "1753"]
[BlackElo "1869"]
[Annotator "NA RC"]
[PlyCount "38"]
[EventDate "2022.08.14"]
[EventCountry "ISR"]
[SourceTitle "playchess.com"]
[Source "ChessBase"]
[SourceQuality "1"]
[TimeControl "3000+10"]

1. c4 {[%emt 0:00:09]} c6 {[%emt 0:00:08]} 2. d4 {[%emt 0:00:04]} d5 {[%emt 0:00:06]} 3. cxd5 {[%emt 0:00:03]} cxd5 {[%emt 0:00:18]} 4. Bf4 {[%emt 0:00:05]} Nf6 {[%emt 0:00:28]} 5. Nc3 {[%emt 0:00:08]} Nc6 {[%emt 0:00:36]} 6. e3 {[%emt 0:00:13]} Bf5 {[%emt 0:00:15]} 7. Nf3 {[%emt 0:00:34]} e6 {[%emt 0:00:10]} 8. Bb5 {[%emt 0:01:43]} a6 {[%emt 0:05:29]} 9. Bxc6+ {[%emt 0:08:19]} bxc6 {[%emt 0:01:00]} 10. Qa4 {[%emt 0:00:12]} Qb6 {[%emt 0:00:39]} 11. Ne5 {[%emt 0:00:27]} Rc8 {[%emt 0:00:15]} 12. O-O {[%emt 0:01:19]} Be7 {[%emt 0:01:03]} 13. Bg5 {[%emt 0:02:50]} h6 {[%emt 0:02:56]} 14. Bh4 {[%emt 0:00:13]} Rc7 {[%emt 0:01:31]} 15. Qb3 {[%emt 0:04:51]} Qa7 {[%emt 0:07:02]} 16. Qa4 {[%emt 0:06:09]} Qb6 {[%emt 0:01:03]} 17. Qb3 {[%emt 0:00:24]} Qa7 {[%emt 0:00:15]} 18. Qa4 {[%emt 0:03:35]} Qb7 {[%emt 0:01:35]} 19. Qb3 {[%emt 0:01:40]} Qa7 {[%emt 0:09:02]} 1/2-1/2

[Event "Israeli Team U18-ch 2022"]
[Site "Be'er Ya'akov"]
[Date "2022.08.16"]
[Round "7.20"]
[White "Qasem, Huda"]
[Black "Bercovici, Yaniv"]
[Result "1/2-1/2"]
[ECO "B23"]
[WhiteElo "1765"]
[BlackElo "1548"]
[Annotator "NA RC"]
[PlyCount "123"]
[EventDate "2022.08.14"]
[EventCountry "ISR"]
[SourceTitle "playchess.com"]
[Source "ChessBase"]
[SourceQuality "1"]
[TimeControl "3000+10"]

1. e4 {[%emt 0:00:02]} c5 {[%emt 0:00:08]} 2. Nc3 {[%emt 0:00:06]} a6 {[%emt 0:00:06]} 3. g3 {[%emt 0:00:15]} b5 {[%emt 0:01:09]} 4. Bg2 {[%emt 0:00:08]} Bb7 {[%emt 0:00:05]} 5. d3 {[%emt 0:00:12]} e6 {[%emt 0:00:51]} 6. f4 {[%emt 0:00:33]} d5 {[%emt 0:00:53]} 7. e5 {[%emt 0:02:14]} Nc6 {[%emt 0:00:20]} 8. Nf3 {[%emt 0:00:17]} Nge7 {[%emt 0:02:24]} 9. O-O {[%emt 0:00:39]} Nf5 {[%emt 0:00:58]} 10. g4 {[%emt 0:01:58]} Nh4 {[%emt 0:01:12]} 11. Nxh4 {[%emt 0:03:54]} Qxh4 {[%emt 0:00:08]} 12. Bd2 {[%emt 0:00:50]} h5 {[%emt 0:03:23]} 13. g5 {[%emt 0:01:02]} Qg4 {[%emt 0:02:33]} 14. Qxg4 {[%emt 0:00:41]} hxg4 {[%emt 0:00:02]} 15. a4 {[%emt 0:02:39]} Nd4 {[%emt 0:02:36]} 16. axb5 {[%emt 0:01:28]} Nxc2 {[%emt 0:03:24]} 17. bxa6 {[%emt 0:01:58]} Rxa6 {[%emt 0:02:58]} 18. Rab1 {[%emt 0:01:50]} Nb4 {[%emt 0:01:21]} 19. d4 {[%emt 0:02:21]} cxd4 {[%emt 0:02:06]} 20. Nb5 {[%emt 0:00:22]} Rb6 {[%emt 0:00:32]} 21. Nxd4 {[%emt 0:01:22]} Ba6 {[%emt 0:01:21]} 22. Rfd1 {[%emt 0:00:35]} Nd3 {[%emt 0:02:53]} 23. Bf1 {[%emt 0:05:00]} Bc5 {[%emt 0:05:55]} 24. Be3 {[%emt 0:02:41]} Nxb2 {[%emt 0:02:56]} 25. Rdc1 {[%emt 0:01:50]} Nc4 {[%emt 0:00:48]} 26. Bxc4 {[%emt 0:01:07]} Bxc4 {[%emt 0:01:38]} 27. Rxb6 {[%emt 0:00:16]} Bxb6 {[%emt 0:00:05]} 28. Nc2 {[%emt 0:00:31]} Bd8 {[%emt 0:02:17]} 29. Na3 {[%emt 0:02:00]} Rh3 {[%emt 0:00:24]} 30. Nxc4 {[%emt 0:00:49]} dxc4 {[%emt 0:00:05]} 31. Bf2 {[%emt 0:02:29]} c3 {[%emt 0:00:43]} 32. Bg3 {[%emt 0:00:16]} Bb6+ {[%emt 0:00:32]} 33. Kg2 {[%emt 0:00:06]} Be3 {[%emt 0:00:28]} 34. Rxc3 {[%emt 0:01:48]} Bxf4 {[%emt 0:00:09]} 35. Rc4 {[%emt 0:00:51]} Bxg3 {[%emt 0:01:04]} 36. hxg3 {[%emt 0:00:04]} Rh5 {[%emt 0:00:12]} 37. Rxg4 {[%emt 0:00:11]} g6 {[%emt 0:00:31]} 38. Kg1 {[%emt 0:01:19]} Kd7 {[%emt 0:00:17]} 39. Kg2 {[%emt 0:01:44]} Kc6 {[%emt 0:00:15]} 40. Rf4 {[%emt 0:03:39]} Kd5 {[%emt 0:00:52]} 41. Rxf7 {[%emt 0:00:16]} Kxe5 {[%emt 0:00:41]} 42. Rf1 {[%emt 0:00:35]} Rxg5 {[%emt 0:00:23]} 43. Re1+ {[%emt 0:00:06]} Kf6 {[%emt 0:00:18]} 44. Kf3 {[%emt 0:00:36]} Rf5+ {[%emt 0:00:57]} 45. Kg2 {[%emt 0:00:30]} e5 {[%emt 0:00:31]} 46. g4 {[%emt 0:00:25]} Rf4 {[%emt 0:00:12]} 47. Kg3 {[%emt 0:00:09]} g5 {[%emt 0:00:24]} 48. Ra1 {[%emt 0:00:08]} Rd4 {[%emt 0:01:56]} 49. Ra6+ {[%emt 0:00:08]} Kf7 {[%emt 0:00:06]} 50. Ra5 {[%emt 0:00:41]} Rd3+ {[%emt 0:00:13]} 51. Kf2 {[%emt 0:00:21]} Ke6 {[%emt 0:00:04]} 52. Ra6+ {[%emt 0:00:06]} Rd6 {[%emt 0:00:19]} 53. Ra5 {[%emt 0:00:06]} Rd4 {[%emt 0:00:16]} 54. Kf3 {[%emt 0:00:18]} Rd3+ {[%emt 0:00:14]} 55. Ke4 {[%emt 0:00:18]} Rd4+ {[%emt 0:00:01]} 56. Kf3 {[%emt 0:00:01]} Rf4+ {[%emt 0:00:08]} 57. Kg3 {[%emt 0:00:01]} Kf6 {[%emt 0:00:29]} 58. Ra6+ {[%emt 0:00:07]} Kg7 {[%emt 0:00:18]} 59. Ra5 {[%emt 0:00:16]} Kf6 {[%emt 0:00:50]} 60. Ra6+ {[%emt 0:00:01]} Kf7 {[%emt 0:00:05]} 61. Ra5 {[%emt 0:00:26]} Ke6 {[%emt 0:00:47]} 62. Ra6+ {[%emt 0:00:14]} 1/2-1/2